fUST/lending_fUST_20260508
["ID","MTS","AMOUNT","RATE_DAILY","PERIOD"]
[421820857,1778189450000,-500.0,0.00011506,2]
[421820859,1778189450000,-397.3,0.00011506,2]
[421820869,1778189450000,-680.51,0.00011506,2]
[421820858,1778189450000,-1180.42,0.00011506,2]
[421820870,1778189450000,-2325.5,0.00011506,2]
[421820868,1778189450000,-500.0,0.00011506,2]
[421820865,1778189450000,-3679.97,0.00011506,2]
[421820852,1778189450000,-516.41,0.00011506,2]
[421820898,1778189450000,-500.0,0.00011506,2]
[421820959,1778189450000,-1298.84,0.0001178,2]
[421820902,1778189450000,-773.8759994,0.00011554,2]
[421820933,1778189450000,-633.58,0.0001178,2]
[421820929,1778189450000,-500.0,0.0001178,2]
[421820934,1778189450000,-500.0,0.0001178,2]
[421820949,1778189450000,-252.63,0.0001178,2]
[421820939,1778189450000,-619.56,0.0001178,2]
[421820938,1778189450000,-450.31,0.0001178,2]
[421820944,1778189450000,-500.0,0.0001178,2]
[421820940,1778189450000,-500.0,0.0001178,2]
[421820950,1778189450000,-4118.73,0.0001178,2]
[421820942,1778189450000,-908.3,0.0001178,2]
[421820943,1778189450000,-603.21,0.0001178,2]
[421820941,1778189450000,-1521.22,0.0001178,2]
[421820946,1778189450000,-630.1,0.0001178,2]
[421820948,1778189450000,-5323.82,0.0001178,2]
[421820945,1778189450000,-500.0,0.0001178,2]
[421820947,1778189450000,-949.11,0.0001178,2]
[421820951,1778189450000,-500.0,0.0001178,2]
[421820963,1778189450000,-1303.98,0.0001178,2]
[421820955,1778189450000,-782.46,0.0001178,2]
[421820952,1778189450000,-759.85,0.0001178,2]
[421820953,1778189450000,-1208.16,0.0001178,2]
[421820956,1778189450000,-1638.11,0.0001178,2]
[421820901,1778189450000,-500.0,0.00011506,2]
[421820962,1778189450000,-1461.04,0.0001178,2]
[421820954,1778189450000,-500.0,0.0001178,2]
[421820957,1778189450000,-546.61,0.0001178,2]
[421820960,1778189450000,-710.82,0.0001178,2]
[421820964,1778189450000,-978.65,0.0001178,2]
[421820958,1778189450000,-500.0,0.0001178,2]
[421820932,1778189450000,-500.0,0.0001178,2]
[421820931,1778189450000,-500.0,0.0001178,2]
[421820961,1778189450000,-1932.16,0.0001178,2]
[421820936,1778189450000,-500.0,0.0001178,2]
[421820930,1778189450000,-754.56,0.0001178,2]
[421820903,1778189450000,-5208.8544326,0.00011554,2]
[421820900,1778189450000,-500.0,0.00011506,2]
[421820909,1778189450000,-185.0,0.00011628,2]
[421820906,1778189450000,-2215.0,0.00011628,2]
[421820910,1778189450000,-396.32,0.0001173,2]
[421820905,1778189450000,-1411.0,0.00011628,2]
[421820899,1778189450000,-2803.95,0.00011506,2]
[421820907,1778189450000,-442.0,0.00011628,2]
[421820908,1778189450000,-741.0,0.00011628,2]
[421820922,1778189450000,-500.0,0.0001178,2]
[421820912,1778189450000,-500.0,0.0001178,2]
[421820911,1778189450000,-3890.82347505,0.00011757,2]
[421820923,1778189450000,-710.08,0.0001178,2]
[421820913,1778189450000,-500.0,0.0001178,2]
[421820904,1778189450000,-160.9932998,0.00011566,2]
[421820917,1778189450000,-527.65,0.0001178,2]
[421820927,1778189450000,-500.0,0.0001178,2]
[421820915,1778189450000,-721.53,0.0001178,2]
[421820928,1778189450000,-654.35,0.0001178,2]
[421820925,1778189450000,-1609.82,0.0001178,2]
[421820926,1778189450000,-625.0,0.0001178,2]
[421820937,1778189450000,-849.15,0.0001178,2]
[421820935,1778189450000,-1586.12,0.0001178,2]
[421820919,1778189450000,-500.0,0.0001178,2]
[421820914,1778189450000,-500.0,0.0001178,2]
[421820918,1778189450000,-440.89,0.0001178,2]
[421820921,1778189450000,-500.0,0.0001178,2]
[421820920,1778189450000,-549.49,0.0001178,2]
[421820924,1778189450000,-799.74,0.0001178,2]
[421820916,1778189450000,-176.2425,0.0001178,2]
[421821001,1778189451000,-1136.3,0.0001178,2]
[421820996,1778189451000,-500.0,0.0001178,2]
[421820998,1778189451000,-500.0,0.0001178,2]
[421820993,1778189451000,-523.42,0.0001178,2]
[421820994,1778189451000,-971.3,0.0001178,2]
[421820991,1778189451000,-932.22,0.0001178,2]
[421821002,1778189451000,-500.0,0.0001178,2]
[421820995,1778189451000,-500.0,0.0001178,2]
[421820992,1778189451000,-500.0,0.0001178,2]
[421821000,1778189451000,-2205.24,0.0001178,2]
[421820997,1778189451000,-1567.35,0.0001178,2]
[421821015,1778189451000,-500.0,0.00012054,2]
[421821004,1778189451000,-1743.98,0.0001178,2]
[421821003,1778189451000,-988.02,0.0001178,2]
[421821014,1778189451000,-500.0,0.00012054,2]
[421821005,1778189451000,-1026.08,0.0001178,2]
[421821012,1778189451000,-250.0,0.00012001,2]
[421821009,1778189451000,-160.0,0.00011927,3]
[421821006,1778189451000,-2803.95,0.0001178,2]
[421821008,1778189451000,-500.0,0.0001178,2]
[421821010,1778189451000,-259.14313081,0.00011958,3]
[421820987,1778189451000,-842.21,0.0001178,2]
[421820999,1778189451000,-629.5,0.0001178,2]
[421820984,1778189451000,-1858.57,0.0001178,2]
[421820970,1778189451000,-662.05,0.0001178,2]
[421820985,1778189451000,-20032.94,0.0001178,2]
[421820975,1778189451000,-886.09,0.0001178,2]
[421820976,1778189451000,-573.55,0.0001178,2]
[421820977,1778189451000,-3679.97,0.0001178,2]
[421820965,1778189451000,-321.43,0.0001178,2]
[421820968,1778189451000,-1104.6,0.0001178,2]
[421821007,1778189451000,-500.0,0.0001178,2]
[421820966,1778189451000,-500.0,0.0001178,2]
[421820974,1778189451000,-1066.3,0.0001178,2]
[421820969,1778189451000,-500.0,0.0001178,2]
[421820972,1778189451000,-1180.42,0.0001178,2]
[421820981,1778189451000,-680.51,0.0001178,2]
[421820967,1778189451000,-2668.57,0.0001178,2]
[421820973,1778189451000,-500.0,0.0001178,2]
[421820978,1778189451000,-538.8,0.0001178,2]
[421820979,1778189451000,-500.0,0.0001178,2]
[421820983,1778189451000,-1214.82,0.0001178,2]
[421820989,1778189451000,-954.5,0.0001178,2]
[421820986,1778189451000,-4031.3,0.0001178,2]
[421820988,1778189451000,-2132.02,0.0001178,2]
[421820980,1778189451000,-500.0,0.0001178,2]
[421820990,1778189451000,-1675.89,0.0001178,2]
[421820982,1778189451000,-2325.5,0.0001178,2]
[421820971,1778189451000,-389.96,0.0001178,2]
[421821013,1778189451000,-155.0,0.00012053,2]
[421821063,1778189451000,-500.0,0.00012054,2]
[421821017,1778189451000,-721.53,0.00012054,2]
[421821043,1778189451000,-420.91,0.00012054,2]
[421821044,1778189451000,-500.0,0.00012054,2]
[421821055,1778189451000,-546.61,0.00012054,2]
[421821054,1778189451000,-1638.11,0.00012054,2]
[421821053,1778189451000,-782.46,0.00012054,2]
[421821052,1778189451000,-500.0,0.00012054,2]
[421821046,1778189451000,-949.11,0.00012054,2]
[421821045,1778189451000,-630.1,0.00012054,2]
[421821049,1778189451000,-509.75,0.00012054,2]
[421821047,1778189451000,-5323.82,0.00012054,2]
[421821037,1778189451000,-849.15,0.00012054,2]
[421821050,1778189451000,-759.85,0.00012054,2]
[421821057,1778189451000,-1298.84,0.00012054,2]
[421821056,1778189451000,-500.0,0.00012054,2]
[421821065,1778189451000,-1104.6,0.00012054,2]
[421821060,1778189451000,-1461.04,0.00012054,2]
[421821058,1778189451000,-710.82,0.00012054,2]
[421821064,1778189451000,-2668.57,0.00012054,2]
[421821059,1778189451000,-1932.16,0.00012054,2]
[421821062,1778189451000,-978.65,0.00012054,2]
[421821061,1778189451000,-1303.98,0.00012054,2]
[421821011,1778189451000,-857.10461354,0.00012,2]
[421821048,1778189451000,-4118.73,0.00012054,2]
[421821033,1778189451000,-633.58,0.00012054,2]
[421821051,1778189451000,-1208.16,0.00012054,2]
[421821041,1778189451000,-908.3,0.00012054,2]
[421821040,1778189451000,-1521.22,0.00012054,2]
[421821024,1778189451000,-799.74,0.00012054,2]
[421821016,1778189451000,-500.0,0.00012054,2]
[421821018,1778189451000,-527.65,0.00012054,2]
[421821020,1778189451000,-549.49,0.00012054,2]
[421821019,1778189451000,-500.0,0.00012054,2]
[421821025,1778189451000,-1609.82,0.00012054,2]
[421821021,1778189451000,-500.0,0.00012054,2]
[421821022,1778189451000,-500.0,0.00012054,2]
[421821026,1778189451000,-625.0,0.00012054,2]
[421821028,1778189451000,-654.35,0.00012054,2]
[421821023,1778189451000,-710.08,0.00012054,2]
[421821027,1778189451000,-500.0,0.00012054,2]
[421821029,1778189451000,-500.0,0.00012054,2]
[421821030,1778189451000,-754.56,0.00012054,2]
[421821032,1778189451000,-500.0,0.00012054,2]
[421821042,1778189451000,-603.21,0.00012054,2]
[421821031,1778189451000,-500.0,0.00012054,2]
[421821035,1778189451000,-1586.12,0.00012054,2]
[421821036,1778189451000,-331.08,0.00012054,2]
[421821039,1778189451000,-500.0,0.00012054,2]
[421821034,1778189451000,-500.0,0.00012054,2]
[421821038,1778189451000,-619.56,0.00012054,2]
[421821110,1778189452000,-500.0,0.00012328,2]
[421821106,1778189452000,-9732.46920686,0.00012173,2]
[421821104,1778189452000,-656.03143608,0.00012081,2]
[421821103,1778189452000,-4833.99801099,0.00012056,2]
[421821093,1778189452000,-496.39,0.00012054,2]
[421821097,1778189452000,-988.02,0.00012054,2]
[421821099,1778189452000,-1026.08,0.00012054,2]
[421821096,1778189452000,-500.0,0.00012054,2]
[421821095,1778189452000,-1136.3,0.00012054,2]
[421821100,1778189452000,-2803.95,0.00012054,2]
[421821108,1778189452000,-857.10461354,0.00012298,2]
[421821102,1778189452000,-500.0,0.00012054,2]
[421821105,1778189452000,-857.10461354,0.00012149,2]
[421821127,1778189452000,-510.24,0.00012328,2]
[421821115,1778189452000,-549.49,0.00012328,2]
[421821109,1778189452000,-500.0,0.00012328,2]
[421821112,1778189452000,-721.53,0.00012328,2]
[421821111,1778189452000,-392.37,0.00012328,2]
[421821113,1778189452000,-527.65,0.00012328,2]
[421821114,1778189452000,-227.63,0.00012328,2]
[421821116,1778189452000,-500.0,0.00012328,2]
[421821118,1778189452000,-710.08,0.00012328,2]
[421821119,1778189452000,-799.74,0.00012328,2]
[421821117,1778189452000,-500.0,0.00012328,2]
[421821121,1778189452000,-625.0,0.00012328,2]
[421821101,1778189452000,-500.0,0.00012054,2]
[421821107,1778189452000,-160.0,0.00012254,4]
[421821098,1778189452000,-1743.98,0.00012054,2]
[421821079,1778189452000,-1858.57,0.00012054,2]
[421821092,1778189452000,-1567.35,0.00012054,2]
[421821067,1778189452000,-662.05,0.00012054,2]
[421821066,1778189452000,-500.0,0.00012054,2]
[421821068,1778189452000,-1180.42,0.00012054,2]
[421821123,1778189452000,-654.35,0.00012328,2]
[421821069,1778189452000,-1066.3,0.00012054,2]
[421821072,1778189452000,-3679.97,0.00012054,2]
[421821070,1778189452000,-886.09,0.00012054,2]
[421821073,1778189452000,-538.8,0.00012054,2]
[421821071,1778189452000,-573.55,0.00012054,2]
[421821074,1778189452000,-500.0,0.00012054,2]
[421821077,1778189452000,-2325.5,0.00012054,2]
[421821075,1778189452000,-500.0,0.00012054,2]
[421821094,1778189452000,-2205.24,0.00012054,2]
[421821076,1778189452000,-680.51,0.00012054,2]
[421821081,1778189452000,-4031.3,0.00012054,2]
[421821091,1778189452000,-500.0,0.00012054,2]
[421821082,1778189452000,-842.21,0.00012054,2]
[421821080,1778189452000,-20032.94,0.00012054,2]
[421821085,1778189452000,-1675.89,0.00012054,2]
[421821083,1778189452000,-2132.02,0.00012054,2]
[421821084,1778189452000,-954.5,0.00012054,2]
[421821089,1778189452000,-971.3,0.00012054,2]
[421821086,1778189452000,-932.22,0.00012054,2]
[421821090,1778189452000,-500.0,0.00012054,2]
[421821087,1778189452000,-500.0,0.00012054,2]
[421821088,1778189452000,-523.42,0.00012054,2]
[421821078,1778189452000,-1214.82,0.00012054,2]
[421821124,1778189452000,-500.0,0.00012328,2]
[421821120,1778189452000,-1609.82,0.00012328,2]
[421821125,1778189452000,-754.56,0.00012328,2]
[421821161,1778189452000,-1066.3,0.00012328,2]
[421821157,1778189452000,-1104.6,0.00012328,2]
[421821156,1778189452000,-2668.57,0.00012328,2]
[421821158,1778189452000,-500.0,0.00012328,2]
[421821162,1778189452000,-886.09,0.00012328,2]
[421821160,1778189452000,-1180.42,0.00012328,2]
[421821163,1778189452000,-573.55,0.00012328,2]
[421821164,1778189452000,-3679.97,0.00012328,2]
[421821166,1778189452000,-500.0,0.00012328,2]
[421821174,1778189452000,-842.21,0.00012328,2]
[421821168,1778189452000,-680.51,0.00012328,2]
[421821170,1778189452000,-1214.82,0.00012328,2]
[421821167,1778189452000,-500.0,0.00012328,2]
[421821165,1778189452000,-538.8,0.00012328,2]
[421821169,1778189452000,-2325.5,0.00012328,2]
[421821173,1778189452000,-4031.3,0.00012328,2]
[421821172,1778189452000,-20032.94,0.00012328,2]
[421821171,1778189452000,-1858.57,0.00012328,2]
[421821176,1778189452000,-954.5,0.00012328,2]
[421821181,1778189452000,-971.3,0.00012328,2]
[421821180,1778189452000,-523.42,0.00012328,2]
[421821177,1778189452000,-1675.89,0.00012328,2]
[421821175,1778189452000,-2132.02,0.00012328,2]
[421821126,1778189452000,-500.0,0.00012328,2]
[421821179,1778189452000,-500.0,0.00012328,2]
[421821183,1778189452000,-500.0,0.00012328,2]
[421821182,1778189452000,-500.0,0.00012328,2]
[421821159,1778189452000,-662.05,0.00012328,2]
[421821155,1778189452000,-500.0,0.00012328,2]
[421821178,1778189452000,-932.22,0.00012328,2]
[421821152,1778189452000,-1461.04,0.00012328,2]
[421821154,1778189452000,-978.65,0.00012328,2]
[421821128,1778189452000,-633.58,0.00012328,2]
[421821129,1778189452000,-500.0,0.00012328,2]
[421821139,1778189452000,-949.11,0.00012328,2]
[421821131,1778189452000,-849.15,0.00012328,2]
[421821130,1778189452000,-1586.12,0.00012328,2]
[421821134,1778189452000,-1521.22,0.00012328,2]
[421821132,1778189452000,-619.56,0.00012328,2]
[421821136,1778189452000,-603.21,0.00012328,2]
[421821137,1778189452000,-500.0,0.00012328,2]
[421821133,1778189452000,-500.0,0.00012328,2]
[421821135,1778189452000,-908.3,0.00012328,2]
[421821138,1778189452000,-630.1,0.00012328,2]
[421821122,1778189452000,-500.0,0.00012328,2]
[421821142,1778189452000,-759.85,0.00012328,2]
[421821153,1778189452000,-1303.98,0.00012328,2]
[421821150,1778189452000,-710.82,0.00012328,2]
[421821148,1778189452000,-500.0,0.00012328,2]
[421821140,1778189452000,-5323.82,0.00012328,2]
[421821141,1778189452000,-4118.73,0.00012328,2]
[421821149,1778189452000,-1298.84,0.00012328,2]
[421821146,1778189452000,-1638.11,0.00012328,2]
[421821143,1778189452000,-1208.16,0.00012328,2]
[421821147,1778189452000,-546.61,0.00012328,2]
[421821145,1778189452000,-782.46,0.00012328,2]
[421821151,1778189452000,-1932.16,0.00012328,2]
[421821144,1778189452000,-500.0,0.00012328,2]
[421821221,1778189453000,-527.65,0.00012602,2]
[421821222,1778189453000,-549.49,0.00012602,2]
[421821216,1778189453000,-160.0,0.00012582,5]
[421821218,1778189453000,-500.0,0.00012602,2]
[421821215,1778189453000,-1712.53020879,0.00012547,2]
[421821214,1778189453000,-10499.06674341,0.00012524,2]
[421821219,1778189453000,-500.0,0.00012602,2]
[421821213,1778189453000,-2768.94580777,0.00012523,7]
[421821241,1778189453000,-908.3,0.00012602,2]
[421821211,1778189453000,-11788.85015956,0.000125,2]
[421821232,1778189453000,-754.56,0.00012602,2]
[421821227,1778189453000,-1609.82,0.00012602,2]
[421821223,1778189453000,-500.0,0.00012602,2]
[421821231,1778189453000,-500.0,0.00012602,2]
[421821226,1778189453000,-799.74,0.00012602,2]
[421821225,1778189453000,-710.08,0.00012602,2]
[421821228,1778189453000,-625.0,0.00012602,2]
[421821229,1778189453000,-500.0,0.00012602,2]
[421821230,1778189453000,-654.35,0.00012602,2]
[421821233,1778189453000,-500.0,0.00012602,2]
[421821234,1778189453000,-633.58,0.00012602,2]
[421821237,1778189453000,-849.15,0.00012602,2]
[421821217,1778189453000,-857.10461354,0.00012596,7]
[421821224,1778189453000,-500.0,0.00012602,2]
[421821212,1778189453000,-294.37464747,0.00012522,7]
[421821196,1778189453000,-9108.18,0.00012329,2]
[421821204,1778189453000,-4915.0,0.00012376,2]
[421821186,1778189453000,-1136.3,0.00012328,2]
[421821185,1778189453000,-2205.24,0.00012328,2]
[421821184,1778189453000,-1567.35,0.00012328,2]
[421821187,1778189453000,-500.0,0.00012328,2]
[421821189,1778189453000,-1743.98,0.00012328,2]
[421821194,1778189453000,-13115.78,0.00012329,2]
[421821193,1778189453000,-500.0,0.00012328,2]
[421821188,1778189453000,-988.02,0.00012328,2]
[421821191,1778189453000,-2803.95,0.00012328,2]
[421821192,1778189453000,-500.0,0.00012328,2]
[421821190,1778189453000,-1026.08,0.00012328,2]
[421821210,1778189453000,-857.10461354,0.00012447,7]
[421821195,1778189453000,-10929.82,0.00012329,2]
[421821199,1778189453000,-5270.94,0.00012329,2]
[421821209,1778189453000,-2768.94580777,0.00012436,7]
[421821198,1778189453000,-6325.13,0.00012329,2]
[421821200,1778189453000,-4720.29,0.00012329,2]
[421821201,1778189453000,-611.07206918,0.00012341,2]
[421821202,1778189453000,-2768.94580777,0.00012348,2]
[421821203,1778189453000,-864.0,0.00012367,2]
[421821207,1778189453000,-313.0,0.00012376,2]
[421821206,1778189453000,-1450.0,0.00012376,2]
[421821205,1778189453000,-761.0,0.00012376,2]
[421821208,1778189453000,-154.0,0.00012376,2]
[421821197,1778189453000,-7590.15,0.00012329,2]
[421821238,1778189453000,-619.56,0.00012602,2]
[421821220,1778189453000,-721.53,0.00012602,2]
[421821235,1778189453000,-500.0,0.00012602,2]
[421821268,1778189453000,-886.09,0.00012602,2]
[421821269,1778189453000,-573.55,0.00012602,2]
[421821270,1778189453000,-3679.97,0.00012602,2]
[421821271,1778189453000,-538.8,0.00012602,2]
[421821272,1778189453000,-500.0,0.00012602,2]
[421821273,1778189453000,-500.0,0.00012602,2]
[421821275,1778189453000,-2325.5,0.00012602,2]
[421821277,1778189453000,-1858.57,0.00012602,2]
[421821274,1778189453000,-680.51,0.00012602,2]
[421821278,1778189453000,-20032.94,0.00012602,2]
[421821280,1778189453000,-842.21,0.00012602,2]
[421821265,1778189453000,-662.05,0.00012602,2]
[421821283,1778189453000,-1675.89,0.00012602,2]
[421821276,1778189453000,-1214.82,0.00012602,2]
[421821282,1778189453000,-954.5,0.00012602,2]
[421821281,1778189453000,-2132.02,0.00012602,2]
[421821286,1778189453000,-523.42,0.00012602,2]
[421821288,1778189453000,-500.0,0.00012602,2]
[421821289,1778189453000,-500.0,0.00012602,2]
[421821285,1778189453000,-500.0,0.00012602,2]
[421821287,1778189453000,-971.3,0.00012602,2]
[421821290,1778189453000,-1567.35,0.00012602,2]
[421821291,1778189453000,-2205.24,0.00012602,2]
[421821240,1778189453000,-1521.22,0.00012602,2]
[421821279,1778189453000,-4031.3,0.00012602,2]
[421821263,1778189453000,-1104.6,0.00012602,2]
[421821284,1778189453000,-932.22,0.00012602,2]
[421821266,1778189453000,-1180.42,0.00012602,2]
[421821236,1778189453000,-1586.12,0.00012602,2]
[421821267,1778189453000,-1066.3,0.00012602,2]
[421821239,1778189453000,-500.0,0.00012602,2]
[421821242,1778189453000,-603.21,0.00012602,2]
[421821243,1778189453000,-500.0,0.00012602,2]
[421821247,1778189453000,-4118.73,0.00012602,2]
[421821245,1778189453000,-949.11,0.00012602,2]
[421821246,1778189453000,-5323.82,0.00012602,2]
[421821250,1778189453000,-500.0,0.00012602,2]
[421821251,1778189453000,-782.46,0.00012602,2]
[421821244,1778189453000,-630.1,0.00012602,2]
[421821252,1778189453000,-1638.11,0.00012602,2]
[421821248,1778189453000,-759.85,0.00012602,2]
[421821254,1778189453000,-500.0,0.00012602,2]
[421821264,1778189453000,-500.0,0.00012602,2]
[421821249,1778189453000,-1208.16,0.00012602,2]
[421821259,1778189453000,-1303.98,0.00012602,2]
[421821262,1778189453000,-2668.57,0.00012602,2]
[421821260,1778189453000,-978.65,0.00012602,2]
[421821257,1778189453000,-1932.16,0.00012602,2]
[421821261,1778189453000,-466.36,0.00012602,2]
[421821256,1778189453000,-710.82,0.00012602,2]
[421821255,1778189453000,-1298.84,0.00012602,2]
[421821253,1778189453000,-546.61,0.00012602,2]
[421821258,1778189453000,-1461.04,0.00012602,2]
[421821332,1778189454000,-500.0,0.00012876,2]
[421821322,1778189454000,-527.65,0.00012876,2]
[421821325,1778189454000,-500.0,0.00012876,2]
[421821323,1778189454000,-549.49,0.00012876,2]
[421821320,1778189454000,-500.0,0.00012876,2]
[421821326,1778189454000,-710.08,0.00012876,2]
[421821329,1778189454000,-625.0,0.00012876,2]
[421821328,1778189454000,-1609.82,0.00012876,2]
[421821327,1778189454000,-799.74,0.00012876,2]
[421821331,1778189454000,-654.35,0.00012876,2]
[421821333,1778189454000,-754.56,0.00012876,2]
[421821351,1778189454000,-500.0,0.00012876,2]
[421821336,1778189454000,-500.0,0.00012876,2]
[421821335,1778189454000,-633.58,0.00012876,2]
[421821339,1778189454000,-619.56,0.00012876,2]
[421821337,1778189454000,-1586.12,0.00012876,2]
[421821338,1778189454000,-849.15,0.00012876,2]
[421821340,1778189454000,-500.0,0.00012876,2]
[421821334,1778189454000,-500.0,0.00012876,2]
[421821342,1778189454000,-908.3,0.00012876,2]
[421821341,1778189454000,-1521.22,0.00012876,2]
[421821343,1778189454000,-603.21,0.00012876,2]
[421821321,1778189454000,-721.53,0.00012876,2]
[421821330,1778189454000,-500.0,0.00012876,2]
[421821319,1778189454000,-500.0,0.00012876,2]
[421821292,1778189454000,-1136.3,0.00012602,2]
[421821317,1778189454000,-2768.94580777,0.00012871,7]
[421821344,1778189454000,-500.0,0.00012876,2]
[421821294,1778189454000,-988.02,0.00012602,2]
[421821295,1778189454000,-1743.98,0.00012602,2]
[421821293,1778189454000,-500.0,0.00012602,2]
[421821296,1778189454000,-1026.08,0.00012602,2]
[421821298,1778189454000,-500.0,0.00012602,2]
[421821297,1778189454000,-2803.95,0.00012602,2]
[421821299,1778189454000,-500.0,0.00012602,2]
[421821303,1778189454000,-587.38525557,0.00012638,7]
[421821305,1778189454000,-218.56425865,0.00012695,7]
[421821306,1778189454000,-2768.94580777,0.00012697,7]
[421821301,1778189454000,-160.0,0.0001261,7]
[421821300,1778189454000,-2768.94580777,0.0001261,7]
[421821302,1778189454000,-354.27898159,0.00012638,7]
[421821304,1778189454000,-313.20811659,0.00012642,7]
[421821308,1778189454000,-205.020723,0.0001274,2]
[421821318,1778189454000,-11265.66427996,0.00012875,2]
[421821307,1778189454000,-425.514708,0.0001274,2]
[421821309,1778189454000,-857.10461354,0.00012745,7]
[421821313,1778189454000,-2068.0,0.000128,3]
[421821311,1778189454000,-294.37464747,0.00012783,7]
[421821312,1778189454000,-2768.94580777,0.00012784,7]
[421821310,1778189454000,-2181.93977031,0.00012753,2]
[421821314,1778189454000,-5506.18315904,0.00012853,7]
[421821315,1778189454000,-5478.79921768,0.00012861,2]
[421821316,1778189454000,-38000.0,0.00012868,2]
[421821346,1778189454000,-949.11,0.00012876,2]
[421821324,1778189454000,-500.0,0.00012876,2]
[421821348,1778189454000,-4118.73,0.00012876,2]
[421821378,1778189454000,-20032.94,0.00012876,2]
[421821383,1778189454000,-1675.89,0.00012876,2]
[421821381,1778189454000,-2132.02,0.00012876,2]
[421821384,1778189454000,-932.22,0.00012876,2]
[421821382,1778189454000,-954.5,0.00012876,2]
[421821379,1778189454000,-4031.3,0.00012876,2]
[421821380,1778189454000,-842.21,0.00012876,2]
[421821385,1778189454000,-500.0,0.00012876,2]
[421821347,1778189454000,-5323.82,0.00012876,2]
[421821388,1778189454000,-500.0,0.00012876,2]
[421821389,1778189454000,-500.0,0.00012876,2]
[421821386,1778189454000,-523.42,0.00012876,2]
[421821391,1778189454000,-2205.24,0.00012876,2]
[421821390,1778189454000,-1567.35,0.00012876,2]
[421821392,1778189454000,-1136.3,0.00012876,2]
[421821393,1778189454000,-500.0,0.00012876,2]
[421821394,1778189454000,-988.02,0.00012876,2]
[421821395,1778189454000,-1743.98,0.00012876,2]
[421821397,1778189454000,-2803.95,0.00012876,2]
[421821396,1778189454000,-1026.08,0.00012876,2]
[421821398,1778189454000,-179.45,0.00012876,2]
[421821400,1778189454000,-38000.0,0.00012877,2]
[421821399,1778189454000,-500.0,0.00012876,2]
[421821402,1778189454000,-38000.0,0.00012877,2]
[421821401,1778189454000,-28081.64335506,0.00012877,2]
[421821377,1778189454000,-1858.57,0.00012876,2]
[421821376,1778189454000,-1214.82,0.00012876,2]
[421821387,1778189454000,-971.3,0.00012876,2]
[421821375,1778189454000,-2325.5,0.00012876,2]
[421821345,1778189454000,-630.1,0.00012876,2]
[421821350,1778189454000,-1208.16,0.00012876,2]
[421821374,1778189454000,-680.51,0.00012876,2]
[421821352,1778189454000,-782.46,0.00012876,2]
[421821354,1778189454000,-546.61,0.00012876,2]
[421821356,1778189454000,-1298.84,0.00012876,2]
[421821353,1778189454000,-1638.11,0.00012876,2]
[421821360,1778189454000,-1303.98,0.00012876,2]
[421821361,1778189454000,-978.65,0.00012876,2]
[421821362,1778189454000,-2668.57,0.00012876,2]
[421821355,1778189454000,-500.0,0.00012876,2]
[421821359,1778189454000,-1461.04,0.00012876,2]
[421821349,1778189454000,-759.85,0.00012876,2]